fUSD/lending_fUSD_20250622
["ID","MTS","AMOUNT","RATE_DAILY","PERIOD"]
[367029951,1750623067023,-490.0,0.0003589,15]
[367029952,1750623067033,-490.0,0.0003589,15]
[367029953,1750623067042,-490.0,0.0003589,15]
[367029954,1750623067052,-396.67342667,0.0003589,15]
[367029955,1750623067061,-490.0,0.0003589,15]
[367029956,1750623067073,-490.0,0.0003589,15]
[367029957,1750623067082,-462.90056522,0.0003589,15]
[367029958,1750623067091,-500.0,0.0003589,15]
[367029959,1750623067100,-490.0,0.0003589,15]
[367029960,1750623067109,-490.0,0.0003589,15]
[367029961,1750623067119,-759.01,0.0003589,15]
[367029962,1750623067128,-490.0,0.0003589,15]
[367029963,1750623067137,-490.0,0.0003589,15]
[367029964,1750623067147,-490.0,0.0003589,15]
[367029965,1750623067156,-490.0,0.0003589,15]
[367029966,1750623067165,-490.0,0.0003589,15]
[367029967,1750623067174,-490.0,0.0003589,15]
[367029968,1750623067184,-498.91871979,0.0003589,15]
[367029969,1750623067194,-490.0,0.0003589,15]
[367029970,1750623067204,-490.0,0.0003589,15]
[367029971,1750623067213,-490.0,0.0003589,15]
[367029972,1750623067223,-490.0,0.0003589,15]
[367029973,1750623067232,-490.0,0.0003589,15]
[367029974,1750623067242,-490.0,0.0003589,15]
[367029975,1750623067251,-490.0,0.0003589,15]
[367029976,1750623067261,-490.0,0.0003589,15]
[367029977,1750623067275,-490.0,0.0003589,15]
[367029978,1750623067284,-562.75,0.0003589,15]
[367029979,1750623067294,-490.0,0.0003589,15]
[367029980,1750623067304,-490.0,0.0003589,15]
[367029981,1750623067314,-490.0,0.0003589,15]
[367029982,1750623067324,-490.0,0.0003589,15]
[367029983,1750623067333,-656.11,0.0003589,15]
[367029984,1750623067343,-508.91340337,0.0003589,15]
[367029985,1750623067352,-490.0,0.0003589,15]
[367029986,1750623067362,-490.0,0.0003589,15]
[367029987,1750623067371,-490.0,0.0003589,15]
[367029988,1750623067381,-490.0,0.0003589,15]
[367029989,1750623067390,-490.0,0.0003589,15]
[367029990,1750623067399,-1255.71,0.0003589,15]
[367029991,1750623067408,-490.0,0.0003589,15]
[367029992,1750623067418,-490.0,0.0003589,15]
[367029993,1750623067427,-670.26,0.0003589,15]
[367029994,1750623067437,-490.0,0.0003589,15]
[367029995,1750623067446,-490.0,0.0003589,15]
[367029996,1750623067455,-490.0,0.0003589,15]
[367029997,1750623067465,-587.2,0.0003589,15]
[367029998,1750623067474,-320.8984122,0.0003589,15]
[367029999,1750623067484,-490.0,0.0003589,15]
[367030000,1750623067493,-490.0,0.0003589,2]
[367030001,1750623067502,-490.0,0.0003589,15]
[367030002,1750623067511,-498.16993391,0.0003589,15]
[367030003,1750623067524,-490.0,0.0003589,15]
[367030004,1750623067533,-490.0,0.0003589,15]
[367030005,1750623067542,-490.0,0.0003589,15]
[367030006,1750623067552,-490.0,0.0003589,15]
[367030007,1750623067561,-151.0,0.0003589,7]
[367030008,1750623067570,-490.0,0.0003589,15]
[367030009,1750623067579,-490.0,0.0003589,15]
[367030010,1750623067589,-217.34781632,0.0003589,15]
[367030011,1750623067598,-435.08189989,0.0003589,15]
[367030012,1750623067608,-490.0,0.0003589,15]
[367030013,1750623067617,-490.0,0.0003589,15]
[367030014,1750623067627,-499.94702484,0.0003589,15]
[367030015,1750623067637,-490.0,0.0003589,15]
[367030016,1750623067648,-151.0,0.0003589,7]
[367030017,1750623067658,-490.0,0.0003589,15]
[367030018,1750623067667,-490.0,0.0003589,15]
[367030019,1750623067676,-490.0,0.0003589,15]
[367030020,1750623067685,-490.0,0.0003589,15]
[367030021,1750623067695,-490.0,0.0003589,15]
[367030022,1750623067704,-490.0,0.0003589,15]
[367030023,1750623067714,-490.0,0.0003589,15]
[367030024,1750623067723,-300.0,0.0003589,15]
[367030025,1750623067732,-699.53,0.0003589,15]
[367030026,1750623067742,-151.0,0.0003589,7]
[367030027,1750623067752,-480.28689904,0.0003589,15]
[367030028,1750623067762,-490.0,0.0003589,15]
[367030029,1750623067776,-490.0,0.0003589,15]
[367030030,1750623067786,-490.0,0.0003589,15]
[367030031,1750623067795,-940.62,0.0003589,15]
[367030032,1750623067805,-490.0,0.0003589,15]
[367030033,1750623067816,-151.0,0.0003589,7]
[367030034,1750623067826,-151.0,0.0003589,7]
[367030035,1750623067836,-490.0,0.0003589,15]
[367030036,1750623067850,-490.0,0.0003589,15]
[367030037,1750623067860,-490.0,0.0003589,15]
[367030038,1750623067870,-490.0,0.0003589,15]
[367030039,1750623067879,-512.07,0.0003589,15]
[367030040,1750623067890,-490.0,0.0003589,15]
[367030041,1750623067900,-490.0,0.0003589,15]
[367030042,1750623067910,-490.0,0.0003589,15]
[367030043,1750623067922,-490.0,0.0003589,15]
[367030044,1750623067932,-490.0,0.0003589,15]
[367030045,1750623067941,-490.0,0.0003589,15]
[367030046,1750623067950,-490.0,0.0003589,15]
[367030047,1750623067959,-490.0,0.0003589,5]
[367030048,1750623067969,-490.0,0.0003589,15]
[367030049,1750623067979,-353.9622449,0.0003589,15]
[367030050,1750623067988,-598.49213273,0.0003589,15]
[367030051,1750623067997,-724.65,0.0003589,15]
[367030052,1750623068007,-490.0,0.0003589,15]
[367030053,1750623068016,-490.0,0.0003589,15]
[367030054,1750623068031,-490.0,0.0003589,15]
[367030055,1750623068040,-490.0,0.0003589,15]
[367030056,1750623068050,-490.0,0.0003589,15]
[367030057,1750623068060,-490.0,0.0003589,15]
[367030058,1750623068070,-716.27,0.0003589,15]
[367030059,1750623068080,-490.0,0.0003589,2]
[367030060,1750623068089,-425.0289603,0.0003589,15]
[367030061,1750623068099,-1633.93,0.0003589,15]
[367030062,1750623068108,-490.0,0.0003589,15]
[367030063,1750623068118,-490.0,0.0003589,15]
[367030064,1750623068127,-490.0,0.0003589,15]
[367030065,1750623068136,-1000.0,0.0003589,15]
[367030066,1750623068146,-465.89885496,0.0003589,15]
[367030067,1750623068155,-742.8,0.0003589,15]
[367030068,1750623068164,-440.0,0.0003589,15]
[367030069,1750623068173,-240.16821507,0.0003589,15]
[367030070,1750623068182,-490.0,0.0003589,15]
[367030071,1750623068191,-490.0,0.0003589,15]
[367030072,1750623068200,-490.0,0.0003589,15]
[367030073,1750623068209,-191.63847,0.0003589,7]
[367030074,1750623068219,-490.0,0.0003589,15]
[367030075,1750623068228,-191.63847,0.0003589,7]
[367030076,1750623068237,-191.63847,0.0003589,7]
[367030077,1750623068247,-490.0,0.0003589,15]
[367030078,1750623068256,-191.63847,0.0003589,7]
[367030079,1750623068265,-490.0,0.0003589,15]
[367030080,1750623068280,-490.0,0.0003589,15]
[367030081,1750623068290,-191.63847,0.0003589,7]
[367030082,1750623068300,-490.0,0.0003589,15]
[367030083,1750623068309,-191.63847,0.0003589,7]
[367030084,1750623068319,-1000.0,0.0003589,2]
[367030085,1750623068329,-191.63847,0.0003589,7]
[367030086,1750623068338,-191.63847,0.0003589,7]
[367030087,1750623068348,-490.0,0.0003589,15]
[367030088,1750623068358,-490.0,0.0003589,15]
[367030089,1750623068367,-490.0,0.0003589,15]
[367030090,1750623068377,-3470.632694,0.0003589,15]
[367030091,1750623068386,-1408.55,0.0003589,15]
[367030092,1750623068396,-490.0,0.0003589,15]
[367030093,1750623068406,-490.0,0.0003589,15]
[367030094,1750623068416,-490.0,0.0003589,15]
[367030095,1750623068425,-490.0,0.0003589,15]
[367030096,1750623068435,-490.0,0.0003589,15]
[367030097,1750623068445,-888.17,0.0003589,15]
[367030098,1750623068455,-829.79,0.0003589,15]
[367030099,1750623068464,-778.14,0.0003589,15]
[367030100,1750623068474,-494.12402606,0.0003589,15]
[367030101,1750623068483,-906.17,0.0003589,15]
[367030102,1750623068493,-253.06757346,0.0003589,15]
[367030103,1750623068502,-490.0,0.0003589,15]
[367030104,1750623068512,-1076.93,0.0003589,15]
[367030105,1750623068525,-537.6,0.0003589,15]
[367030106,1750623068535,-490.0,0.0003589,15]
[367030107,1750623068544,-490.0,0.0003589,15]
[367030108,1750623068554,-490.0,0.0003589,15]
[367030109,1750623068563,-490.0,0.0003589,15]
[367030110,1750623068573,-490.0,0.0003589,15]
[367030111,1750623068583,-490.0,0.0003589,15]
[367030112,1750623068593,-490.0,0.0003589,15]
[367030113,1750623068604,-490.0,0.0003589,15]
[367030114,1750623068614,-490.0,0.0003589,15]
[367030115,1750623068624,-490.0,0.0003589,15]
[367030116,1750623068635,-490.0,0.0003589,15]
[367030117,1750623068644,-810.24,0.0003589,15]
[367030118,1750623068654,-758.38,0.0003589,15]
[367030119,1750623068664,-490.0,0.0003589,15]
[367030120,1750623068673,-151.0,0.0003589,7]
[367030121,1750623068683,-512.65,0.0003589,15]
[367030122,1750623068692,-490.0,0.0003589,15]
[367030123,1750623068702,-151.0,0.0003589,7]
[367030124,1750623068711,-490.0,0.0003589,15]
[367030125,1750623068721,-338.00187733,0.0003589,15]
[367030126,1750623068730,-490.0,0.0003589,15]
[367030127,1750623068740,-490.0,0.0003589,15]
[367030128,1750623068750,-490.0,0.0003589,15]
[367030129,1750623068759,-490.0,0.0003589,15]
[367030130,1750623068769,-577.18,0.0003589,15]
[367030131,1750623068782,-490.0,0.0003589,15]
[367030132,1750623068792,-490.0,0.0003589,15]
[367030133,1750623068802,-309.52017674,0.0003589,15]
[367030134,1750623068811,-490.0,0.0003589,15]
[367030135,1750623068821,-1011.01,0.0003589,15]
[367030136,1750623068831,-961.18,0.0003589,15]
[367030137,1750623068842,-490.0,0.0003589,15]
[367030138,1750623068854,-1067.24,0.0003589,15]
[367030139,1750623068865,-490.0,0.0003589,15]
[367030140,1750623068875,-970.19,0.0003589,15]
[367030141,1750623068886,-490.0,0.0003589,15]
[367030142,1750623068896,-633.18,0.0003589,15]
[367030143,1750623068905,-923.16,0.0003589,15]
[367030144,1750623068915,-490.0,0.0003589,15]
[367030145,1750623068926,-490.0,0.0003589,15]
[367030146,1750623068938,-490.0,0.0003589,15]
[367030147,1750623068949,-693.63,0.0003589,15]
[367030148,1750623068958,-490.0,0.0003589,15]
[367030149,1750623068968,-490.0,0.0003589,15]
[367030150,1750623068978,-490.0,0.0003589,15]
[367030151,1750623068987,-490.0,0.0003589,15]
[367030152,1750623068997,-490.0,0.0003589,15]
[367030153,1750623069006,-681.23,0.0003589,15]
[367030154,1750623069016,-490.0,0.0003589,15]
[367030155,1750623069030,-490.0,0.0003589,15]
[367030156,1750623069040,-490.0,0.0003589,15]
[367030157,1750623069050,-490.0,0.0003589,15]
[367030158,1750623069059,-490.0,0.0003589,15]
[367030159,1750623069069,-630.21981496,0.0003589,15]
[367030160,1750623069079,-490.0,0.0003589,15]
[367030161,1750623069088,-500.0,0.0003589,15]
[367030162,1750623069098,-503.69462904,0.0003589,15]
[367030163,1750623069108,-490.0,0.0003589,15]
[367030164,1750623069118,-490.0,0.0003589,15]
[367030165,1750623069127,-572.41908042,0.0003589,15]
[367030166,1750623069137,-490.0,0.0003589,15]
[367030167,1750623069147,-490.0,0.0003589,15]
[367030168,1750623069156,-490.0,0.0003589,15]
[367030169,1750623069166,-580.46,0.0003589,15]
[367030170,1750623069176,-490.0,0.0003589,15]
[367030171,1750623069186,-490.0,0.0003589,15]
[367030172,1750623069196,-490.0,0.0003589,15]
[367030173,1750623069206,-1601.48,0.0003589,15]
[367030174,1750623069216,-490.0,0.0003589,15]
[367030175,1750623069226,-490.0,0.0003589,15]
[367030176,1750623069235,-708.52,0.0003589,15]
[367030177,1750623069246,-490.0,0.0003589,15]
[367030178,1750623069256,-595.54,0.0003589,15]
[367030179,1750623069267,-490.0,0.0003589,15]
[367030180,1750623069280,-495.14106706,0.0003589,15]
[367030181,1750623069291,-490.0,0.0003589,15]
[367030182,1750623069302,-490.0,0.0003589,15]
[367030183,1750623069312,-490.0,0.0003589,15]
[367030184,1750623069603,-490.0,0.0003589,15]
[367030185,1750623069613,-490.0,0.0003589,15]
[367030186,1750623069623,-490.0,0.0003589,15]
[367030187,1750623069632,-490.0,0.0003589,15]
[367030188,1750623069642,-490.0,0.0003589,15]
[367030189,1750623069652,-490.0,0.0003589,15]
[367030190,1750623069662,-490.0,0.0003589,15]
[367030191,1750623069671,-490.0,0.0003589,15]
[367030192,1750623069681,-490.0,0.0003589,15]
[367030193,1750623069690,-492.96592692,0.0003589,15]
[367030194,1750623069699,-490.0,0.0003589,15]
[367030195,1750623069708,-490.0,0.0003589,15]
[367030196,1750623069718,-507.70632761,0.0003589,15]
[367030197,1750623069727,-490.0,0.0003589,15]
[367030198,1750623069736,-1356.09,0.0003589,15]
[367030199,1750623069746,-654.63,0.0003589,15]
[367030200,1750623069755,-490.0,0.0003589,15]
[367030201,1750623069765,-490.0,0.0003589,15]
[367030202,1750623069783,-490.0,0.0003589,15]
[367030203,1750623069792,-897.76,0.0003589,15]
[367030204,1750623069802,-490.0,0.0003589,15]
[367030205,1750623069812,-972.09,0.0003589,15]
[367030206,1750623069822,-490.0,0.0003589,15]
[367030207,1750623069831,-553.93,0.0003589,15]
[367030208,1750623069842,-490.0,0.0003589,15]
[367030209,1750623069852,-494.90000905,0.0003589,15]
[367030210,1750623069865,-490.0,0.0003589,15]
[367030211,1750623069875,-490.0,0.0003589,15]
[367030212,1750623069886,-908.68,0.0003589,15]
[367030213,1750623069895,-560.95,0.0003589,15]
[367030214,1750623069905,-490.0,0.0003589,15]
[367030215,1750623069915,-491.15898461,0.0003589,15]
[367030216,1750623069926,-490.0,0.0003589,15]
[367030217,1750623069936,-316.35349367,0.0003589,15]
[367030218,1750623069945,-2066.0,0.0003589,15]
[367030219,1750623069955,-490.0,0.0003589,15]
[367030220,1750623069965,-490.0,0.0003589,15]
[367030221,1750623069974,-923.9,0.0003589,15]
[367030222,1750623069984,-490.0,0.0003589,15]
[367030223,1750623069994,-1746.71,0.0003589,15]
[367030224,1750623070004,-490.0,0.0003589,15]
[367030225,1750623070014,-490.0,0.0003589,15]
[367030226,1750623070029,-1105.74,0.0003589,15]
[367030227,1750623070038,-490.0,0.0003589,15]
[367030228,1750623070048,-490.0,0.0003589,15]
[367030229,1750623070057,-490.0,0.0003589,15]
[367030230,1750623070067,-494.77,0.0003589,15]
[367030231,1750623070076,-490.0,0.0003589,15]
[367030232,1750623070086,-490.0,0.0003589,15]
[367030233,1750623070096,-490.0,0.0003589,15]
[367030234,1750623070107,-490.0,0.0003589,15]
[367030235,1750623070117,-490.0,0.0003589,15]
[367030236,1750623070127,-832.19,0.0003589,15]
[367030237,1750623070136,-502.26,0.0003589,15]
[367030238,1750623070146,-490.0,0.0003589,15]
[367030239,1750623070157,-703.02,0.0003589,15]
[367030240,1750623070166,-954.27,0.0003589,15]
[367030241,1750623070176,-542.6,0.0003589,15]
[367030242,1750623070185,-176.11245028,0.0003589,15]
[367030243,1750623070195,-490.0,0.0003589,15]
[367030244,1750623070205,-212.31492073,0.0003589,15]
[367030245,1750623070214,-490.0,0.0003589,15]
[367030246,1750623070224,-490.0,0.0003589,15]
[367030247,1750623070233,-490.0,0.0003589,15]
[367030248,1750623070243,-678.01,0.0003589,15]
[367030249,1750623070253,-493.06448249,0.0003589,15]
[367030250,1750623070263,-510.22,0.0003589,15]
[367030251,1750623070277,-490.0,0.0003589,15]
[367030252,1750623070287,-490.0,0.0003589,15]
[367030253,1750623070296,-490.0,0.0003589,15]
[367030254,1750623070306,-490.0,0.0003589,15]
[367030255,1750623070316,-490.0,0.0003589,15]
[367030256,1750623070325,-490.0,0.0003589,15]
[367030257,1750623070335,-490.0,0.0003589,15]
[367030258,1750623070345,-490.0,0.0003589,15]
[367030259,1750623070355,-490.0,0.0003589,15]
[367030260,1750623070364,-983.29,0.0003589,15]
[367030261,1750623070375,-490.0,0.0003589,15]
[367030262,1750623070384,-498.2432003,0.0003589,15]
[367030263,1750623070394,-490.0,0.0003589,15]
[367030264,1750623070403,-500.0,0.0003589,15]
[367030265,1750623070413,-211.30566442,0.0003589,15]
[367030266,1750623070422,-490.0,0.0003589,15]
[367030267,1750623070432,-490.0,0.0003589,15]
[367030268,1750623070441,-490.0,0.0003589,15]
[367030269,1750623070451,-516.34,0.0003589,15]
[367030270,1750623070460,-1516.92,0.0003589,15]
[367030271,1750623070470,-490.0,0.0003589,15]
[367030272,1750623070479,-490.0,0.0003589,15]
[367030273,1750623070488,-576.41546656,0.0003589,15]
[367030274,1750623070499,-490.0,0.0003589,15]
[367030275,1750623070508,-1197.91,0.0003589,15]
[367030276,1750623070517,-490.0,0.0003589,15]
[367030277,1750623070531,-490.0,0.0003589,15]
[367030278,1750623070540,-422.86926695,0.0003589,15]
[367030279,1750623070550,-490.0,0.0003589,15]
[367030280,1750623070560,-490.0,0.0003589,15]
[367030281,1750623070569,-1583.51,0.0003589,15]
[367030282,1750623070579,-490.0,0.0003589,15]
[367030283,1750623070588,-490.0,0.0003589,15]
[367030284,1750623070597,-490.0,0.0003589,15]
[367030285,1750623070607,-1704.3,0.0003589,15]
[367030286,1750623070616,-491.58064957,0.0003589,15]
[367030287,1750623070625,-490.0,0.0003589,15]
[367030288,1750623070635,-490.0,0.0003589,15]
[367030289,1750623070647,-490.0,0.0003589,15]
[367030290,1750623070656,-497.37843805,0.0003589,15]
[367030291,1750623070665,-816.77,0.0003589,15]
[367030292,1750623070675,-490.0,0.0003589,15]
[367030293,1750623070685,-490.0,0.0003589,15]
[367030294,1750623070694,-553.70555967,0.0003589,15]
[367030295,1750623070704,-490.0,0.0003589,15]
[367030296,1750623070714,-490.0,0.0003589,15]
[367030297,1750623070724,-490.0,0.0003589,15]
[367030298,1750623070733,-491.04435324,0.0003589,15]
[367030299,1750623070743,-564.6,0.0003589,15]
[367030300,1750623070752,-204.10569236,0.0003589,15]
[367030301,1750623070761,-490.0,0.0003589,15]
[367030302,1750623070776,-1235.29,0.0003589,15]
[367030303,1750623070786,-490.0,0.0003589,15]
[367030304,1750623070795,-1354.42,0.0003589,15]
[367030305,1750623070805,-490.0,0.0003589,15]
[367030306,1750623070814,-1862.31,0.0003589,15]
[367030307,1750623070824,-490.0,0.0003589,15]
[367030308,1750623070834,-490.0,0.0003589,15]
[367030309,1750623070848,-490.0,0.0003589,15]
[367030310,1750623070857,-490.0,0.0003589,15]
[367030311,1750623070867,-490.0,0.0003589,15]
[367030312,1750623070877,-1316.22,0.0003589,15]
[367030313,1750623070887,-1585.07,0.0003589,15]
[367030314,1750623070897,-2200.63,0.0003589,15]
[367030315,1750623070907,-512.29,0.0003589,15]
[367030316,1750623070916,-490.0,0.0003589,15]
[367030317,1750623070926,-960.62,0.0003589,15]
[367030318,1750623070936,-490.0,0.0003589,15]
[367030319,1750623070946,-490.0,0.0003589,15]
[367030320,1750623070956,-1137.65,0.0003589,15]
[367030321,1750623070965,-2059.46,0.0003589,15]
[367030322,1750623070975,-490.0,0.0003589,15]
[367030323,1750623070985,-490.0,0.0003589,15]
[367030324,1750623070994,-490.79,0.0003589,15]
[367030325,1750623071004,-999.69,0.0003589,15]
[367030326,1750623071014,-1569.59,0.0003589,15]
[367030327,1750623071028,-490.0,0.0003589,15]
[367030328,1750623071038,-287.74653554,0.0003589,15]
[367030329,1750623071048,-899.19,0.0003589,15]
[367030330,1750623071057,-1014.45,0.0003589,15]
[367030331,1750623071066,-600.7,0.0003589,15]
[367030332,1750623071076,-1822.64,0.0003589,15]
[367030333,1750623071086,-151.0,0.0003589,7]
[367030334,1750623071095,-499.8919931,0.0003589,15]
[367030335,1750623071105,-151.0,0.0003589,7]
[367030336,1750623071115,-490.0,0.0003589,15]
[367030337,1750623071124,-151.0,0.0003589,7]
[367030338,1750623071134,-151.0,0.0003589,7]
[367030339,1750623071144,-660.73,0.0003589,15]
[367030340,1750623071153,-490.0,0.0003589,15]
[367030341,1750623071163,-490.0,0.0003589,15]
[367030342,1750623071173,-151.0,0.0003589,7]
[367030343,1750623071182,-151.0,0.0003589,7]
[367030344,1750623071192,-263.735262,0.0003589,7]
[367030345,1750623071202,-490.0,0.0003589,15]
[367030346,1750623071212,-493.38420554,0.0003589,15]
[367030347,1750623071221,-988.98,0.0003589,15]
[367030348,1750623071231,-490.0,0.0003589,15]
[367030349,1750623071240,-597.31,0.0003589,15]
[367030350,1750623071250,-490.0,0.0003589,15]
[367030351,1750623071259,-490.0,0.0003589,15]
[367030352,1750623071269,-490.0,0.0003589,15]
[367030353,1750623071283,-490.0,0.0003589,15]
[367030354,1750623071293,-1017.78,0.0003589,15]
[367030355,1750623071302,-490.0,0.0003589,15]
[367030356,1750623071312,-375.69502056,0.0003589,15]
[367030357,1750623071322,-561.3,0.0003589,15]
[367030358,1750623071332,-490.0,0.0003589,15]
[367030359,1750623071341,-490.0,0.0003589,15]
[367030360,1750623071351,-1007.33,0.0003589,15]
[367030361,1750623071360,-558.09,0.0003589,15]
[367030362,1750623071370,-690.54,0.0003589,15]
[367030363,1750623071379,-490.0,0.0003589,15]
[367030364,1750623071389,-581.45,0.0003589,15]
[367030365,1750623071398,-490.0,0.0003589,15]
[367030366,1750623071408,-490.0,0.0003589,15]
[367030367,1750623071417,-490.0,0.0003589,15]
[367030368,1750623071427,-490.0,0.0003589,15]
[367030369,1750623071436,-490.0,0.0003589,15]
[367030370,1750623071446,-490.0,0.0003589,15]
[367030371,1750623071456,-745.8,0.0003589,15]
[367030372,1750623071465,-1777.46,0.0003589,15]
[367030373,1750623071476,-490.0,0.0003589,15]
[367030374,1750623071485,-490.0,0.0003589,15]
[367030375,1750623071495,-490.0,0.0003589,15]
[367030376,1750623071504,-490.0,0.0003589,15]
[367030377,1750623071514,-490.0,0.0003589,15]
[367030378,1750623071526,-903.71,0.0003589,15]
[367030379,1750623071536,-1890.06,0.0003589,15]
[367030380,1750623071545,-490.0,0.0003589,15]
[367030381,1750623071555,-1558.15,0.0003589,15]
[367030382,1750623071565,-490.0,0.0003589,15]
[367030383,1750623071575,-490.0,0.0003589,15]
[367030384,1750623071586,-490.0,0.0003589,15]
[367030385,1750623071597,-490.0,0.0003589,15]
[367030386,1750623071606,-490.0,0.0003589,15]
[367030387,1750623071616,-490.0,0.0003589,15]
[367030388,1750623071625,-490.0,0.0003589,15]
[367030389,1750623071635,-490.0,0.0003589,15]
[367030390,1750623071644,-559.39,0.0003589,15]
[367030391,1750623071654,-490.0,0.0003589,15]
[367030392,1750623071663,-490.0,0.0003589,15]
[367030393,1750623071673,-490.0,0.0003589,15]
[367030394,1750623071682,-2017.34,0.0003589,15]
[367030395,1750623071692,-490.0,0.0003589,15]
[367030396,1750623071702,-490.0,0.0003589,15]
[367030397,1750623071711,-490.0,0.0003589,15]
[367030398,1750623071720,-1103.85,0.0003589,15]
[367030399,1750623071730,-1080.95,0.0003589,15]
[367030400,1750623071739,-490.0,0.0003589,15]
[367030401,1750623071748,-490.0,0.0003589,15]
[367030402,1750623071757,-490.0,0.0003589,15]
[367030403,1750623071767,-490.0,0.0003589,15]
[367030404,1750623071781,-490.0,0.0003589,15]
[367030405,1750623071791,-490.0,0.0003589,15]
[367030406,1750623071801,-913.81,0.0003589,15]
[367030407,1750623071811,-490.0,0.0003589,15]
[367030408,1750623071820,-2190.4,0.0003589,15]
[367030409,1750623071829,-490.0,0.0003589,15]
[367030410,1750623071840,-490.0,0.0003589,15]
[367030411,1750623071849,-568.31,0.0003589,15]
[367030412,1750623071862,-490.0,0.0003589,15]
[367030413,1750623071873,-490.0,0.0003589,15]
[367030414,1750623071883,-1996.18,0.0003589,15]
[367030415,1750623071892,-490.0,0.0003589,15]
[367030416,1750623071902,-617.96,0.0003589,15]
[367030417,1750623071912,-684.45,0.0003589,15]
[367030418,1750623071921,-1699.21,0.0003589,15]
[367030419,1750623072011,-1763.347446,0.0003589,15]
[367030420,1750623072021,-490.0,0.0003589,15]
[367030421,1750623072036,-475.72429709,0.0003589,15]
[367030422,1750623072045,-214.99382493,0.0003589,15]
[367030423,1750623072054,-490.0,0.0003589,15]
[367030424,1750623072063,-782.17,0.0003589,15]
[367030425,1750623072072,-545.62,0.0003589,15]
[367030426,1750623072081,-490.0,0.0003589,2]
[367030427,1750623072091,-490.0,0.0003589,15]
[367030428,1750623072100,-490.0,0.0003589,15]
[367030429,1750623072110,-490.0,0.0003589,15]
[367030430,1750623072120,-2292.16,0.0003589,15]
[367030431,1750623072129,-490.0,0.0003589,15]
[367030432,1750623072139,-490.0,0.0003589,15]
[367030433,1750623072148,-1038.15,0.0003589,15]
[367030434,1750623072158,-490.0,0.0003589,15]
[367030435,1750623072167,-490.0,0.0003589,15]
[367030436,1750623072177,-490.0,0.0003589,2]
[367030437,1750623072187,-2131.49,0.0003589,15]
[367030438,1750623072197,-490.0,0.0003589,15]
[367030439,1750623072207,-490.0,0.0003589,15]
[367030440,1750623072216,-490.0,0.0003589,15]
[367030441,1750623072226,-1949.7,0.0003589,15]
[367030442,1750623072236,-937.69,0.0003589,15]
[367030443,1750623072246,-2095.71,0.0003589,15]
[367030444,1750623072256,-490.0,0.0003589,15]
[367030445,1750623072265,-490.0,0.0003589,15]
[367030446,1750623072283,-490.0,0.0003589,15]
[367030447,1750623072293,-490.0,0.0003589,15]
[367030448,1750623072303,-1278.51,0.0003589,15]
[367030449,1750623072313,-696.79,0.0003589,15]
[367030450,1750623072323,-1951.19,0.0003589,15]